[Event "Grandmaster Triathlon - Blitz (GM2)"]
[Site "Biel, Switzerland"]
[Date "2026.07.19"]
[Round "3.2"]
[White "Kosteniuk, Alexandra"]
[Black "Yip, Carissa"]
[Result "1-0"]
[TimeControl "3 + 2"]
[WhiteTitle "-"]
[BlackTitle "-"]
[WhiteFideId "4128125"]
[BlackFideId "2090732"]
[WhiteElo "2392"]
[BlackElo "2369"]

1. e4 {[%clk 00:03:03]} g6 {[%clk 00:03:03]} {[%emt 00:00:01]} 2. d4 {[%clk
00:03:04]} {[%emt 00:00:01]} Bg7 {[%clk 00:03:05]} 3. Nc3 {[%clk 00:03:04]}
{[%emt 00:00:02]} d6 {[%clk 00:03:06]} 4. Be3 {[%clk 00:03:05]} {[%emt
00:00:01]} a6 {[%clk 00:03:07]} {[%emt 00:00:01]} 5. a4 {[%clk 00:03:06]}
{[%emt 00:00:01]} Nd7 {[%clk 00:03:07]} {[%emt 00:00:02]} 6. Nf3 {[%clk
00:03:00]} {[%emt 00:00:07]} b6 {[%clk 00:03:03]} {[%emt 00:00:06]} 7. h4
{[%clk 00:02:59]} {[%emt 00:00:03]} h6 {[%clk 00:03:02]} {[%emt 00:00:03]} 8.
Bc4 {[%clk 00:02:58]} {[%emt 00:00:04]} e6 {[%clk 00:03:01]} {[%emt 00:00:03]}
9. Qe2 {[%clk 00:02:47]} {[%emt 00:00:13]} Bb7 {[%clk 00:03:01]} {[%emt
00:00:01]} 10. d5 {[%clk 00:02:47]} {[%emt 00:00:01]} e5 {[%clk 00:03:00]}
{[%emt 00:00:03]} 11. Nd2 {[%clk 00:02:47]} {[%emt 00:00:02]} Ne7 {[%clk
00:02:53]} {[%emt 00:00:10]} 12. h5 {[%clk 00:02:46]} {[%emt 00:00:03]} g5
{[%clk 00:02:53]} {[%emt 00:00:02]} 13. Nf1 {[%clk 00:02:33]} {[%emt 00:00:15]}
f5 {[%clk 00:02:47]} {[%emt 00:00:09]} 14. exf5 {[%clk 00:02:29]} {[%emt
00:00:06]} Nxf5 {[%clk 00:02:47]} {[%emt 00:00:01]} 15. g4 {[%clk 00:02:17]}
{[%emt 00:00:13]} Ne7 {[%clk 00:02:43]} {[%emt 00:00:06]} 16. f3 {[%clk
00:02:04]} {[%emt 00:00:15]} Nf6 {[%clk 00:02:42]} {[%emt 00:00:02]} 17. Qd3
{[%clk 00:02:02]} {[%emt 00:00:04]} Qd7 {[%clk 00:01:50]} {[%emt 00:00:55]} 18.
Ng3 {[%clk 00:02:03]} {[%emt 00:00:02]} e4 {[%clk 00:01:38]} {[%emt 00:00:14]}
19. Ngxe4 {[%clk 00:01:57]} {[%emt 00:00:08]} Nxe4 {[%clk 00:01:39]} 20. Qxe4
{[%clk 00:01:49]} {[%emt 00:00:10]} O-O-O {[%clk 00:01:37]} {[%emt 00:00:05]}
21. Qd3 {[%clk 00:01:49]} {[%emt 00:00:03]} Kb8 {[%clk 00:01:32]} {[%emt
00:00:07]} 22. O-O {[%clk 00:01:41]} {[%emt 00:00:09]} Rhf8 {[%clk 00:01:21]}
{[%emt 00:00:12]} 23. a5 {[%clk 00:01:19]} {[%emt 00:00:25]} Bxc3 {[%clk
00:01:01]} {[%emt 00:00:22]} 24. bxc3 {[%clk 00:01:18]} {[%emt 00:00:04]} b5
{[%clk 00:01:01]} {[%emt 00:00:01]} 25. Bb3 {[%clk 00:01:11]} {[%emt 00:00:08]}
c5 {[%clk 00:00:46]} {[%emt 00:00:17]} 26. c4 {[%clk 00:01:09]} {[%emt
00:00:04]} Rc8 {[%clk 00:00:37]} {[%emt 00:00:11]} 27. c3 {[%clk 00:01:03]}
{[%emt 00:00:09]} Bxd5 {[%clk 00:00:14]} {[%emt 00:00:25]} 28. cxd5 {[%clk
00:00:53]} {[%emt 00:00:12]} c4 {[%clk 00:00:15]} {[%emt 00:00:01]} 29. Qd4
{[%clk 00:00:49]} {[%emt 00:00:05]} cxb3 {[%clk 00:00:16]} {[%emt 00:00:02]} 30.
Qb6+ {[%clk 00:00:51]} Qb7 {[%clk 00:00:16]} {[%emt 00:00:01]} 31. Qxd6+ {[%clk
00:00:51]} {[%emt 00:00:01]} Ka8 {[%clk 00:00:17]} {[%emt 00:00:01]} 32. Qxh6
{[%clk 00:00:34]} {[%emt 00:00:19]} Nxd5 {[%clk 00:00:16]} {[%emt 00:00:03]} 33.
Bd4 {[%clk 00:00:30]} {[%emt 00:00:06]} Nxc3 {[%clk 00:00:13]} {[%emt
00:00:04]} 34. Bxc3 {[%clk 00:00:29]} {[%emt 00:00:03]} Rfd8 {[%clk 00:00:11]}
{[%emt 00:00:04]} 35. Be5 {[%clk 00:00:15]} {[%emt 00:00:16]} Rd5 {[%clk
00:00:10]} {[%emt 00:00:03]} 36. Bg3 {[%clk 00:00:11]} {[%emt 00:00:05]} Rd2
{[%clk 00:00:10]} {[%emt 00:00:03]} 37. Qxg5 {[%clk 00:00:10]} {[%emt
00:00:02]} Rcc2 {[%clk 00:00:09]} {[%emt 00:00:03]} 38. Bf2 {[%clk 00:00:09]}
{[%emt 00:00:02]} b2 {[%clk 00:00:09]} {[%emt 00:00:02]} 39. Rab1 {[%clk
00:00:11]} Qxf3 {[%clk 00:00:08]} {[%emt 00:00:03]} 40. Qg8+ {[%clk 00:00:11]}
{[%emt 00:00:02]} Kb7 {[%clk 00:00:09]} 41. Qg7+ {[%clk 00:00:10]} {[%emt
00:00:02]} Kc8 {[%clk 00:00:09]} {[%emt 00:00:02]} 42. Qg8+ {[%clk 00:00:09]}
{[%emt 00:00:03]} Kb7 {[%clk 00:00:11]} {[%emt 00:00:01]} 43. Qg7+ {[%clk
00:00:07]} {[%emt 00:00:04]} Kc8 {[%clk 00:00:12]} 44. Qg8+ {[%clk 00:00:08]}
{[%emt 00:00:01]} Kb7 {[%clk 00:00:14]} 45. Qh7+ {[%clk 00:00:09]} Kc8 {[%clk
00:00:15]} 46. Qf5+ {[%clk 00:00:07]} {[%emt 00:00:04]} Qxf5 {[%clk 00:00:14]}
{[%emt 00:00:03]} 47. gxf5 {[%clk 00:00:08]} {[%emt 00:00:01]} Rc4 {[%clk
00:00:13]} {[%emt 00:00:03]} 48. Kg2 {[%clk 00:00:08]} {[%emt 00:00:02]} Rf4
{[%clk 00:00:13]} {[%emt 00:00:02]} 49. Kg3 {[%clk 00:00:08]} {[%emt 00:00:02]}
Rxf5 {[%clk 00:00:14]} {[%emt 00:00:01]} 50. h6 {[%clk 00:00:08]} {[%emt
00:00:02]} Rd3+ {[%clk 00:00:13]} {[%emt 00:00:03]} 51. Kg4 {[%clk 00:00:08]}
{[%emt 00:00:02]} Rf7 {[%clk 00:00:13]} {[%emt 00:00:02]} 52. Rxb2 {[%clk
00:00:07]} {[%emt 00:00:04]} Rdf3 {[%clk 00:00:10]} {[%emt 00:00:04]} 53. h7
{[%clk 00:00:06]} {[%emt 00:00:04]} R3f4+ {[%clk 00:00:11]} {[%emt 00:00:01]}
54. Kg3 {[%clk 00:00:07]} Rf3+ {[%clk 00:00:11]} {[%emt 00:00:02]} 55. Kg2
{[%clk 00:00:08]} 1-0

[Event "Grandmaster Triathlon - Blitz (GM2)"]
[Site "Biel, Switzerland"]
[Date "2026.07.19"]
[Round "3.3"]
[White "Vaishali, Rameshbabu"]
[Black "Finek, Vaclav"]
[Result "0-1"]
[TimeControl "3 + 2"]
[WhiteTitle "-"]
[BlackTitle "-"]
[WhiteFideId "5091756"]
[BlackFideId "23718293"]
[WhiteElo "2364"]
[BlackElo "2504"]

1. d4 {[%clk 00:03:02]} {[%emt 00:00:01]} Nf6 {[%clk 00:03:03]} {[%emt
00:00:02]} 2. Nf3 {[%clk 00:03:03]} {[%emt 00:00:01]} e6 {[%clk 00:03:04]}
{[%emt 00:00:01]} 3. Bg5 {[%clk 00:03:03]} {[%emt 00:00:01]} h6 {[%clk
00:03:03]} {[%emt 00:00:03]} 4. Bh4 {[%clk 00:03:03]} {[%emt 00:00:02]} b6
{[%clk 00:02:58]} {[%emt 00:00:08]} 5. Nbd2 {[%clk 00:03:00]} {[%emt 00:00:05]}
Bb7 {[%clk 00:02:59]} {[%emt 00:00:01]} 6. e3 {[%clk 00:03:00]} {[%emt
00:00:02]} Be7 {[%clk 00:02:59]} {[%emt 00:00:02]} 7. Bd3 {[%clk 00:02:59]}
{[%emt 00:00:02]} O-O {[%clk 00:02:59]} {[%emt 00:00:02]} 8. Rg1 {[%clk
00:02:44]} {[%emt 00:00:17]} Nd5 {[%clk 00:02:44]} {[%emt 00:00:17]} 9. Bxe7
{[%clk 00:02:39]} {[%emt 00:00:07]} Qxe7 {[%clk 00:02:45]} {[%emt 00:00:01]} 10.
g4 {[%emt 00:00:16]} Nb4 {[%clk 00:02:40]} 11. Qe2 {[%clk 00:02:28]} {[%emt
00:00:06]} g6 {[%clk 00:02:13]} {[%emt 00:00:30]} 12. h4 {[%clk 00:02:10]}
{[%emt 00:00:20]} c5 {[%clk 00:02:01]} {[%emt 00:00:14]} 13. a3 {[%clk
00:02:00]} {[%emt 00:00:11]} Nxd3+ {[%clk 00:01:58]} {[%emt 00:00:05]} 14. Qxd3
{[%clk 00:02:01]} {[%emt 00:00:01]} d5 {[%clk 00:01:52]} {[%emt 00:00:08]} 15.
h5 {[%clk 00:01:48]} {[%emt 00:00:14]} Ba6 {[%clk 00:01:53]} {[%emt 00:00:02]}
16. Qb3 {[%clk 00:01:26]} {[%emt 00:00:24]} g5 {[%clk 00:01:52]} {[%emt
00:00:03]} 17. c3 {[%clk 00:01:16]} {[%emt 00:00:13]} Nd7 {[%clk 00:01:42]}
{[%emt 00:00:11]} 18. O-O-O {[%clk 00:00:58]} {[%emt 00:00:20]} Bd3 {[%clk
00:01:32]} {[%emt 00:00:13]} 19. Ne5 {[%clk 00:00:33]} {[%emt 00:00:27]} Nxe5
{[%clk 00:01:30]} {[%emt 00:00:04]} 20. dxe5 {[%clk 00:00:34]} {[%emt
00:00:01]} c4 {[%clk 00:01:27]} {[%emt 00:00:06]} 21. Qb4 {[%clk 00:00:12]}
{[%emt 00:00:24]} Qxb4 {[%clk 00:01:27]} {[%emt 00:00:02]} 22. cxb4 {[%clk
00:00:07]} {[%emt 00:00:06]} f6 {[%clk 00:01:15]} {[%emt 00:00:13]} 23. f4
{[%clk 00:00:04]} {[%emt 00:00:05]} fxe5 {[%clk 00:01:13]} {[%emt 00:00:04]} 24.
fxe5 {[%clk 00:00:04]} {[%emt 00:00:02]} Rf2 {[%clk 00:01:11]} {[%emt
00:00:04]} 25. Rge1 {[%clk 00:00:04]} {[%emt 00:00:02]} Rc8 {[%clk 00:01:10]}
{[%emt 00:00:03]} 26. b5 {[%clk 00:00:04]} {[%emt 00:00:02]} c3 {[%clk
00:01:00]} {[%emt 00:00:12]} 27. bxc3 {[%clk 00:00:03]} {[%emt 00:00:02]} Rxc3+
{[%clk 00:01:00]} {[%emt 00:00:01]} 28. Kb2 {[%clk 00:00:04]} {[%emt 00:00:02]}
Rc2+ {[%clk 00:01:02]} 29. Kb3 {[%clk 00:00:05]} Rcxd2 {[%clk 00:00:58]} {[%emt
00:00:05]} 30. Rxd2 {[%clk 00:00:04]} {[%emt 00:00:03]} Rxd2 {[%clk 00:00:59]}
{[%emt 00:00:01]} 31. Kc3 {[%clk 00:00:05]} Re2 {[%clk 00:01:00]} {[%emt
00:00:01]} 0-1

[Event "Grandmaster Triathlon - Blitz (GM2)"]
[Site "Biel, Switzerland"]
[Date "2026.07.19"]
[Round "4.1"]
[White "Xiao, Tong(Qd)"]
[Black "Yip, Carissa"]
[Result "1-0"]
[TimeControl "3 + 2"]
[WhiteTitle "-"]
[BlackTitle "-"]
[WhiteFideId "8622388"]
[BlackFideId "2090732"]
[WhiteElo "2465"]
[BlackElo "2369"]

1. b3 {[%clk 00:03:03]} Nf6 {[%clk 00:02:58]} {[%emt 00:00:06]} 2. Bb2 {[%clk
00:03:04]} {[%emt 00:00:01]} e6 {[%clk 00:03:00]} {[%emt 00:00:01]} 3. e3
{[%clk 00:03:03]} {[%emt 00:00:03]} b6 {[%clk 00:02:57]} {[%emt 00:00:05]} 4.
Nf3 {[%clk 00:03:02]} {[%emt 00:00:03]} Bb7 {[%clk 00:02:58]} {[%emt 00:00:01]}
5. d4 {[%clk 00:03:02]} {[%emt 00:00:02]} Be7 {[%clk 00:02:57]} {[%emt
00:00:03]} 6. Nbd2 {[%clk 00:03:03]} {[%emt 00:00:01]} O-O {[%clk 00:02:57]}
{[%emt 00:00:03]} 7. Bd3 {[%clk 00:03:04]} {[%emt 00:00:01]} d5 {[%clk
00:02:57]} {[%emt 00:00:02]} 8. Qe2 {[%clk 00:03:04]} {[%emt 00:00:02]} c5
{[%clk 00:02:56]} {[%emt 00:00:03]} 9. O-O {[%clk 00:03:03]} {[%emt 00:00:02]}
Nc6 {[%clk 00:02:56]} {[%emt 00:00:03]} 10. a3 {[%clk 00:03:04]} Qc7 {[%clk
00:02:48]} {[%emt 00:00:10]} 11. Rac1 {[%clk 00:03:05]} Rad8 {[%clk 00:02:47]}
{[%emt 00:00:03]} 12. Rfd1 {[%clk 00:02:54]} {[%emt 00:00:13]} h6 {[%clk
00:02:47]} {[%emt 00:00:02]} 13. h3 {[%clk 00:02:54]} {[%emt 00:00:02]} Qb8
{[%clk 00:02:42]} {[%emt 00:00:07]} 14. dxc5 {[%clk 00:02:52]} {[%emt
00:00:04]} bxc5 {[%clk 00:02:42]} {[%emt 00:00:03]} 15. e4 {[%clk 00:02:53]}
{[%emt 00:00:01]} dxe4 {[%clk 00:02:07]} {[%emt 00:00:37]} 16. Nxe4 {[%clk
00:02:53]} {[%emt 00:00:02]} Nd4 {[%clk 00:02:08]} {[%emt 00:00:01]} 17. Nxd4
{[%clk 00:01:44]} {[%emt 00:01:11]} cxd4 {[%clk 00:02:09]} {[%emt 00:00:01]} 18.
b4 {[%clk 00:01:35]} {[%emt 00:00:10]} Qf4 {[%clk 00:01:48]} {[%emt 00:00:23]}
19. Re1 {[%clk 00:01:27]} {[%emt 00:00:10]} Rd7 {[%clk 00:01:26]} {[%emt
00:00:23]} 20. Rcd1 {[%clk 00:01:28]} {[%emt 00:00:01]} Rc8 {[%clk 00:01:22]}
{[%emt 00:00:07]} 21. Bc1 {[%clk 00:01:23]} {[%emt 00:00:07]} Qc7 {[%clk
00:01:19]} {[%emt 00:00:05]} 22. Nxf6+ {[%clk 00:01:14]} {[%emt 00:00:11]} Bxf6
{[%clk 00:01:20]} {[%emt 00:00:01]} 23. f4 {[%clk 00:01:11]} {[%emt 00:00:05]}
Bd5 {[%clk 00:01:14]} {[%emt 00:00:07]} 24. Qg4 {[%clk 00:01:09]} {[%emt
00:00:04]} Bc4 {[%clk 00:01:10]} {[%emt 00:00:07]} 25. f5 {[%clk 00:01:07]}
{[%emt 00:00:04]} Bxd3 {[%clk 00:01:01]} {[%emt 00:00:11]} 26. fxe6 {[%clk
00:01:07]} {[%emt 00:00:02]} Re7 {[%clk 00:00:48]} {[%emt 00:00:15]} 27. exf7+
{[%clk 00:01:02]} {[%emt 00:00:07]} Rxf7 {[%clk 00:00:32]} {[%emt 00:00:18]} 28.
cxd3 {[%clk 00:01:03]} Kh8 {[%clk 00:00:23]} {[%emt 00:00:12]} 29. Bf4 {[%clk
00:01:02]} {[%emt 00:00:02]} Qb7 {[%clk 00:00:21]} {[%emt 00:00:03]} 30. Be5
{[%clk 00:00:52]} {[%emt 00:00:12]} Bxe5 {[%clk 00:00:14]} {[%emt 00:00:10]} 31.
Rxe5 {[%clk 00:00:53]} {[%emt 00:00:01]} Rc2 {[%clk 00:00:05]} {[%emt
00:00:11]} 32. Qg6 {[%clk 00:00:40]} {[%emt 00:00:14]} Rf8 {[%clk 00:00:04]}
{[%emt 00:00:04]} 33. Rf1 {[%clk 00:00:23]} {[%emt 00:00:19]} Rxf1+ {[%clk
00:00:04]} {[%emt 00:00:02]} 34. Kxf1 {[%clk 00:00:24]} Rc1+ {[%clk 00:00:04]}
{[%emt 00:00:02]} 35. Ke2 {[%clk 00:00:20]} {[%emt 00:00:06]} Rc2+ {[%clk
00:00:04]} {[%emt 00:00:03]} 36. Kd1 {[%clk 00:00:21]} {[%emt 00:00:01]} Rc8
{[%clk 00:00:00]} {[%emt 00:00:04]} 37. Re8+ Rxe8 {[%emt 00:00:01]} 38. Qxe8+
Kh7 {[%clk 00:00:00]} 39. Qe4+ {[%clk 00:00:21]} {[%emt 00:00:03]} 1-0

[Event "Grandmaster Triathlon - Blitz (GM2)"]
[Site "Biel, Switzerland"]
[Date "2026.07.19"]
[Round "4.2"]
[White "Materia, Marco"]
[Black "Finek, Vaclav"]
[Result "1/2-1/2"]
[TimeControl "3 + 2"]
[WhiteTitle "-"]
[BlackTitle "-"]
[WhiteFideId "45150451"]
[BlackFideId "23718293"]
[WhiteElo "2509"]
[BlackElo "2504"]

1. d4 {[%clk 00:03:03]} Nf6 {[%clk 00:03:03]} 2. Nf3 {[%clk 00:03:05]} e6
{[%clk 00:03:05]} 3. Bf4 {[%clk 00:03:06]} h6 {[%clk 00:03:05]} {[%emt
00:00:02]} 4. h3 {[%clk 00:03:04]} {[%emt 00:00:04]} d5 {[%clk 00:02:55]}
{[%emt 00:00:11]} 5. e3 {[%clk 00:03:05]} c5 {[%clk 00:02:48]} {[%emt
00:00:09]} 6. Nbd2 {[%emt 00:00:11]} Qb6 {[%clk 00:02:40]} 7. Rb1 {[%clk
00:03:03]} {[%emt 00:00:05]} Bd6 {[%clk 00:02:39]} {[%emt 00:00:03]} 8. Bxd6
{[%clk 00:03:02]} {[%emt 00:00:04]} Qxd6 {[%clk 00:02:40]} {[%emt 00:00:01]} 9.
dxc5 {[%clk 00:03:02]} Qxc5 {[%clk 00:02:41]} 10. b4 {[%clk 00:02:59]} {[%emt
00:00:05]} Qe7 {[%clk 00:02:39]} {[%emt 00:00:04]} 11. c4 {[%clk 00:02:59]}
{[%emt 00:00:02]} O-O {[%clk 00:02:35]} {[%emt 00:00:06]} 12. Be2 {[%clk
00:02:47]} {[%emt 00:00:15]} dxc4 {[%clk 00:02:27]} {[%emt 00:00:09]} 13. Nxc4
{[%clk 00:02:46]} {[%emt 00:00:03]} Rd8 {[%clk 00:02:28]} 14. Qb3 {[%clk
00:02:45]} {[%emt 00:00:03]} b6 {[%clk 00:02:30]} 15. O-O {[%clk 00:02:40]}
{[%emt 00:00:06]} Bb7 {[%clk 00:02:31]} {[%emt 00:00:01]} 16. Nfe5 {[%clk
00:02:28]} {[%emt 00:00:14]} Nbd7 {[%clk 00:02:31]} {[%emt 00:00:02]} 17. Bf3
{[%clk 00:02:16]} {[%emt 00:00:14]} Nxe5 {[%clk 00:02:30]} {[%emt 00:00:04]} 18.
Nxe5 {[%clk 00:02:17]} {[%emt 00:00:01]} Bxf3 {[%clk 00:02:30]} {[%emt
00:00:02]} 19. Nxf3 {[%clk 00:02:18]} Rac8 {[%clk 00:02:03]} {[%emt 00:00:29]}
20. Rbc1 {[%clk 00:02:13]} {[%emt 00:00:07]} Qb7 {[%clk 00:01:52]} {[%emt
00:00:12]} 21. Qb2 {[%clk 00:01:42]} {[%emt 00:00:33]} Rxc1 {[%clk 00:01:41]}
{[%emt 00:00:13]} 22. Rxc1 {[%clk 00:01:43]} {[%emt 00:00:01]} Rc8 {[%clk
00:01:43]} 23. Nd4 {[%clk 00:01:32]} {[%emt 00:00:12]} a6 {[%clk 00:01:28]}
{[%emt 00:00:17]} 24. Rxc8+ {[%clk 00:01:14]} {[%emt 00:00:20]} Qxc8 {[%clk
00:01:29]} {[%emt 00:00:01]} 25. b5 {[%clk 00:01:15]} axb5 {[%clk 00:01:26]}
{[%emt 00:00:05]} 26. Qxb5 {[%clk 00:01:16]} {[%emt 00:00:02]} Qc1+ {[%clk
00:01:16]} {[%emt 00:00:12]} 27. Kh2 {[%clk 00:01:17]} Qc7+ {[%clk 00:01:17]}
{[%emt 00:00:01]} 28. g3 {[%clk 00:01:14]} {[%emt 00:00:04]} g6 {[%clk
00:01:17]} {[%emt 00:00:02]} 29. Kg2 {[%clk 00:01:12]} {[%emt 00:00:04]} Qb7+
{[%clk 00:01:09]} {[%emt 00:00:10]} 30. Qc6 {[%clk 00:01:13]} Qxc6+ {[%clk
00:01:05]} {[%emt 00:00:06]} 31. Nxc6 {[%clk 00:01:14]} {[%emt 00:00:01]} Ne4
{[%clk 00:00:56]} {[%emt 00:00:11]} 32. Kf3 {[%clk 00:01:10]} {[%emt 00:00:06]}
Ng5+ {[%clk 00:00:42]} {[%emt 00:00:17]} 33. Kg2 {[%clk 00:01:04]} {[%emt
00:00:07]} Ne4 {[%clk 00:00:44]} 34. Kf3 {[%clk 00:00:46]} {[%emt 00:00:20]}
Ng5+ {[%clk 00:00:45]} {[%emt 00:00:01]} 35. Kg2 {[%clk 00:00:46]} {[%emt
00:00:01]} Ne4 {[%clk 00:00:46]} 1/2-1/2

[Event "Grandmaster Triathlon - Blitz (GM2)"]
[Site "Biel, Switzerland"]
[Date "2026.07.19"]
[Round "4.3"]
[White "Kosteniuk, Alexandra"]
[Black "Vaishali, Rameshbabu"]
[Result "1-0"]
[TimeControl "3 + 2"]
[WhiteTitle "-"]
[BlackTitle "-"]
[WhiteFideId "4128125"]
[BlackFideId "5091756"]
[WhiteElo "2392"]
[BlackElo "2364"]

1. e4 {[%clk 00:03:03]} d5 {[%clk 00:03:03]} {[%emt 00:00:01]} 2. exd5 {[%clk
00:03:04]} {[%emt 00:00:01]} Qxd5 {[%clk 00:03:04]} {[%emt 00:00:01]} 3. Nc3
{[%clk 00:03:05]} Qa5 {[%clk 00:03:06]} 4. d4 {[%clk 00:03:07]} Bf5 {[%clk
00:03:06]} {[%emt 00:00:01]} 5. Nf3 {[%clk 00:03:06]} {[%emt 00:00:03]} e6
{[%clk 00:03:07]} 6. Ne5 {[%clk 00:03:05]} {[%emt 00:00:03]} Nc6 {[%clk
00:03:06]} {[%emt 00:00:04]} 7. Bb5 {[%clk 00:03:02]} {[%emt 00:00:04]} Bb4
{[%clk 00:02:52]} {[%emt 00:00:16]} 8. Bd2 {[%clk 00:02:39]} {[%emt 00:00:25]}
Nge7 {[%clk 00:02:43]} {[%emt 00:00:11]} 9. Nc4 {[%clk 00:02:28]} {[%emt
00:00:13]} O-O {[%clk 00:01:59]} {[%emt 00:00:46]} 10. Nxa5 {[%clk 00:02:28]}
{[%emt 00:00:02]} Bxa5 {[%clk 00:02:00]} {[%emt 00:00:02]} 11. Ne2 {[%clk
00:02:14]} {[%emt 00:00:15]} Bb6 {[%clk 00:01:59]} {[%emt 00:00:03]} 12. c3
{[%clk 00:02:12]} {[%emt 00:00:04]} a6 {[%clk 00:01:57]} {[%emt 00:00:05]} 13.
Ba4 {[%clk 00:02:13]} {[%emt 00:00:02]} Rad8 {[%clk 00:01:57]} {[%emt
00:00:02]} 14. O-O {[%clk 00:02:11]} {[%emt 00:00:03]} h6 {[%clk 00:01:58]}
{[%emt 00:00:01]} 15. h3 {[%clk 00:02:12]} {[%emt 00:00:02]} Bh7 {[%clk
00:01:56]} {[%emt 00:00:04]} 16. Bc2 {[%clk 00:02:11]} {[%emt 00:00:03]} Bxc2
{[%clk 00:01:53]} {[%emt 00:00:04]} 17. Qxc2 {[%clk 00:02:12]} {[%emt
00:00:01]} Ng6 {[%clk 00:01:50]} {[%emt 00:00:06]} 18. Rad1 {[%clk 00:02:10]}
{[%emt 00:00:04]} Nce7 {[%clk 00:01:50]} {[%emt 00:00:01]} 19. Ng3 {[%clk
00:02:08]} {[%emt 00:00:03]} Rd5 {[%clk 00:01:50]} {[%emt 00:00:02]} 20. Qe4
{[%clk 00:02:08]} {[%emt 00:00:03]} Rfd8 {[%clk 00:01:51]} 21. Rde1 {[%clk
00:01:15]} {[%emt 00:00:54]} c6 {[%clk 00:01:46]} {[%emt 00:00:07]} 22. Bc1
{[%clk 00:01:13]} {[%emt 00:00:04]} Bc7 {[%clk 00:01:42]} {[%emt 00:00:07]} 23.
f4 {[%clk 00:01:09]} {[%emt 00:00:07]} Nh4 {[%clk 00:01:37]} {[%emt 00:00:07]}
24. Ne2 {[%clk 00:01:03]} {[%emt 00:00:08]} Nhf5 {[%clk 00:01:24]} {[%emt
00:00:14]} 25. g4 {[%clk 00:01:04]} Nd6 {[%clk 00:01:25]} {[%emt 00:00:02]} 26.
Qg2 {[%clk 00:01:05]} c5 {[%clk 00:01:24]} {[%emt 00:00:04]} 27. f5 {[%clk
00:00:56]} {[%emt 00:00:11]} exf5 {[%clk 00:01:14]} {[%emt 00:00:11]} 28. Nf4
{[%clk 00:00:57]} {[%emt 00:00:01]} 1-0